Cogmind - Beta 14 @@@ ROGUE MODE // 2024.08.17 @ 00:18:29 Player: Jezoensis Result: Self-destructed Performance ------------- Evolutions (6) 3000 Regions Visited (21) 4200 Robots Destroyed (311) 1555 Value Destroyed (13486) 13486 Prototype IDs (32) 640 Alien Tech Used (0) 0 Bonus (9158) 9158 TOTAL SCORE: 32039 Bonus ------- High Alert Combat Kills 3605 Follower Combat Kills 504 Entered Garrisons 1400 Used RIF Installer 3500 Aligned with FarCom 300 Friendly Fire -151 Cogmind --------- Core Integrity 894/1150 Matter 300/300 Energy 100/100 System Corruption 7% Temperature Cool (0) Movement Core (50) Location -4/Factory Parts ------- > --- POWER (2) -------- (None) > --- PROPULSION (5) --- (None) > --- UTILITY (8) ------ (None) > --- WEAPON (4) ------- (None) > --- INVENTORY (5) ---- Improved Coolant Injector Huge Storage Unit Advanced Thermal Shield Force Field Long-range Tractor Beam Peak State ------------ > --- POWER ------------ Light Angular Momentum Engine Light Quantum Reactor > --- PROPULSION ------- Improved Medium Treads Improved Heavy Treads Improved Heavy Treads > --- UTILITY ---------- Huge Storage Unit Advanced Terrain Scan Processor Advanced Targeting Computer Improved Target Analyzer Advanced Transmission Jammer Improved Medium Armor Plating Force Field Advanced Hacking Suite > --- WEAPON ----------- Heavy Mass Driver Long-range Missile Launcher Long-range Missile Launcher > --- INVENTORY -------- Improved Heavy Treads Improved Heavy Treads Cryofiber Web Advanced Heat Sink Improved Coolant Injector High-capacity Storage Unit Matter Compressor Matter Compressor Matter Compressor Improved Terrain Scanner Advanced Powered Armor Advanced Thermal Shield Force Field Relay Coupler [NC] Long-range Tractor Beam Compact HERF Cannon Heavy Mass Driver Heavy Gauss Cannon Heavy Gauss Cannon Heavy Flail [Rating: 116] Favorites ----------- Power Heavy Ion Engine Engine Heavy Ion Engine Power Core Fission Core Reactor Antimatter Reactor Propulsion Compact Wheel Treads Armored Treads Leg Carbon-fiber Leg Wheel Compact Wheel Utility Advanced Targeting Computer Device Improved Terrain Scanner Storage Huge Storage Unit Processor Advanced Targeting Computer Hackware Relay Coupler [NC] Protection Improved Medium Armor Plating Weapon Advanced Assault Cannon Energy Gun Heavy EM Pulse Gun Energy Cannon Compact HERF Cannon Ballistic Gun KE Penetrator Ballistic Cannon Advanced Assault Cannon Launcher Long-range Missile Launcher Special Weapon Advanced Remote Datajack Impact Weapon Heavy Mace Build | -11 -10 -10 -9 -9 -9 -8 -8 -8 -8 -8 -7 -7 -7 -7 -6 -6 -6 -6 -5 -5 -4 ------- Run | Yrd Mat Min Mat Min Exi Min Mat Gar Mat Gar Fac Gar Fac Gar Fac Gar Fac Gar Fac Gar Fac Slots Evolved 12 | . . . 2 . . . 2 . . . 2 . . . 2 . . . 2 . 2 Power 1 | . . . . . . . . . . . . . . . . . . . 1 . . Propulsion 3 | . . . . . . . . . . . 1 . . . 1 . . . . . 1 Utility 6 | . . . 1 . . . 1 . . . 1 . . . 1 . . . 1 . 1 Weapon 2 | . . . 1 . . . 1 . . . . . . . . . . . . . . Parts Attached 444 | 8 4 4 16 9 3 . 9 13 35 11 45 53 22 25 30 19 4 27 19 33 55 Power 23 | 1 . . 2 . . . 2 . 1 . 2 2 . . . 1 . 1 1 1 9 Engine 15 | 1 . . 2 . . . 2 . 1 . 2 1 . . . . . . 1 . 5 Core 3 | . . . . . . . . . . . . . . . . . . 1 . . 2 Reactor 5 | . . . . . . . . . . . . 1 . . . 1 . . . 1 2 Propulsion 64 | 3 2 4 3 4 . . . . 3 . 6 9 4 1 2 4 1 4 3 5 6 Treads 31 | . 1 2 1 1 . . . . 1 . 2 5 1 1 1 3 . 2 1 4 5 Leg 1 | . . . . . . . . . . . . . . . . . . . . 1 . Wheel 32 | 3 1 2 2 3 . . . . 2 . 4 4 3 . 1 1 1 2 2 . 1 Hover . | . . . . . . . . . . . . . . . . . . . . . . Flight . | . . . . . . . . . . . . . . . . . . . . . . Utility 215 | 2 1 . 2 4 . . 3 5 19 6 24 32 10 19 16 8 2 15 13 14 20 Device 137 | 1 . . 1 1 . . . 4 14 2 16 21 6 15 10 5 1 11 6 9 14 Storage 16 | 1 1 . 1 . . . 1 . . 2 4 3 . . 2 . . . . . 1 Processor 12 | . . . . 1 . . . . 1 1 1 1 . . 1 1 1 . 2 1 1 Hackware 15 | . . . . . . . 2 . 1 . 1 . 2 . 2 . . . 4 1 2 Protection 35 | . . . . 2 . . . 1 3 1 2 7 2 4 1 2 . 4 1 3 2 Artifact . | . . . . . . . . . . . . . . . . . . . . . . Weapon 142 | 2 1 . 9 1 3 . 4 8 12 5 13 10 8 5 12 6 1 7 2 13 20 Energy Gun 20 | . . . 7 1 3 . 4 1 . . . . . . 4 . . . . . . Energy Cannon 9 | . . . . . . . . . . . . 1 . 1 1 1 . 1 . 3 1 Ballistic Gun 12 | 2 1 . 1 . . . . 1 . . 2 1 . . . 1 . . . . 3 Ballistic Cannon 39 | . . . 1 . . . . 3 3 2 8 4 1 1 4 1 . 2 1 4 4 Launcher 30 | . . . . . . . . 1 3 2 . 3 3 3 . 2 . 3 . 5 5 Special Weapon 6 | . . . . . . . . . 1 . . . 1 . 1 . . 1 . . 2 Impact Weapon 26 | . . . . . . . . 2 5 1 3 1 3 . 2 1 1 . 1 1 5 Slashing Weapon . | . . . . . . . . . . . . . . . . . . . . . . Piercing Weapon . | . . . . . . . . . . . . . . . . . . . . . . Special Melee Weapon . | . . . . . . . . . . . . . . . . . . . . . . Unidentified Prototypes 3 | . . . 1 . . . 1 . . . . . 1 . . . . . . . . Corrupted Parts 4 | . . . . . . . . . . . . . . . . . . . . 4 . System Corruption 42 | . . . . . . . . . . . . . . . . . . . . 42 . Parts Lost 57 | . . 4 . 2 . . . 1 3 . 4 6 . 4 1 2 . 5 1 5 19 Power 11 | . . 1 . . . . . . . . . 1 . . . 1 . 1 . 1 6 Propulsion 17 | . . 1 . 1 . . . . 3 . 3 2 . 1 . . . 1 1 1 3 Utility 9 | . . . . . . . . . . . . . . 1 . . . 2 . . 6 Weapon 20 | . . 2 . 1 . . . 1 . . 1 3 . 2 1 1 . 1 . 3 4 Highest Loss Streak 5 | . . 4 . 1 . . . 1 2 . 3 4 . 3 1 1 . 3 1 2 5 To Critical Strikes 1 | . . . . . . . . . . . . . . . . . . . . . 1 Average Slot Usage (%) 95 | . 100 80 94 99 66 100 98 97 99 100 99 99 99 98 99 99 100 98 100 92 79 Engine 4 | . 14 5 10 11 11 11 9 9 9 9 7 6 . . . . . . 5 1 3 Core 1 | . . . . . . . . . . . . . . . . . . 4 5 5 2 Reactor 2 | . . . . . . . . . . . . . 7 7 6 6 6 1 . 3 3 Treads 6 | . 1 10 5 . . . . . 2 9 8 9 7 7 6 10 7 10 5 5 12 Wheel 13 | . 27 18 16 21 22 22 18 18 16 9 12 12 15 15 20 15 18 14 16 10 . Device 8 | . 14 14 22 14 11 11 6 5 8 15 7 12 5 6 9 5 6 5 7 3 11 Storage 7 | . 14 14 11 11 11 11 9 9 9 9 7 7 7 7 6 6 6 6 5 5 5 Processor 13 | . . . . 2 11 11 9 9 16 9 14 13 15 15 13 20 20 15 19 18 16 Hackware 2 | . . . . . . . 11 3 . . 6 . 7 . 4 . . . 3 5 3 Protection 3 | . . . . 4 . . . 8 1 2 . 4 . 7 5 6 6 11 3 4 2 Energy Gun 5 | . . . 24 33 . 33 34 19 . . . . . . 7 9 6 1 . . . Energy Cannon 1 | . . . . . . . . . . . . . . 6 3 2 6 4 5 4 . Ballistic Gun 1 | . 28 18 1 . . . . . . . 4 1 2 . . . . . . . 1 Ballistic Cannon 12 | . . . 2 . . . . 11 25 25 20 23 13 6 7 7 6 16 8 5 8 Launcher 1 | . . . . . . . . . . 4 . 2 1 6 . 3 . 1 . 2 2 Special Weapon 1 | . . . . . . . . . 3 . . . 6 . 4 . . . 5 3 . Impact Weapon 2 | . . . . . . . . 2 6 5 5 . 3 7 2 1 6 . 2 . 3 Peak Build Rating 116 | 9 10 10 18 19 19 19 27 45 47 47 51 68 65 64 74 86 84 90 96 103 116 Average Rating 59 | 5 9 8 14 18 13 19 24 34 43 43 48 49 56 58 68 78 80 84 93 90 99 On Entrance 45 | . 9 10 6 18 19 19 19 27 44 47 43 44 65 57 56 68 84 80 90 90 103 Naked Turns 1 | . . . . . . . . . . . . . . . . . . . . . 1 Heaviest Build 157 | 12 18 18 58 62 56 56 101 124 123 119 118 138 132 135 135 134 129 146 145 154 157 Greatest Support 180 | 32 26 40 40 26 26 26 26 26 26 20 42 32 32 32 42 52 42 60 42 150 180 Greatest Overweight (x) 11 | . . . 3 3 2 2 3 4 11 11 11 8 4 6 3 4 4 4 4 10 . Average Overweight (x) 3 | . . . . 2 1 2 2 3 5 7 4 3 3 3 2 2 3 3 2 3 . Largest Inventory Capacity 25 | 8 10 10 20 20 20 20 25 25 25 25 25 25 25 25 25 25 25 25 25 25 25 Average Capacity 23 | 6 8 10 14 20 20 20 20 25 25 20 23 23 25 25 24 25 25 25 25 25 22 Most Carried 25 | 6 10 10 18 20 20 17 22 25 25 25 25 25 25 25 25 25 25 25 25 25 25 Average Carried 21 | 3 8 9 11 18 19 17 18 23 24 20 22 22 24 23 24 24 24 23 24 23 19 Final Capacity 25 | 8 10 10 20 20 20 20 25 25 25 25 25 25 25 25 25 25 25 25 25 25 5 Final Carried 25 | 6 10 9 18 19 17 17 22 25 25 21 23 25 24 24 25 25 25 25 25 25 5 Class Distribution -------------------- 52% | Skirmisher 14% | Assassin 5% | Mutant 5% | Scavenger-Assassin 4% | Scavenger-Gunner 4% | Tank 3% | Scavenger-Skirmisher 3% | Gunner Dominant Class ---------------- Mutant | -10/Materials Mutant | -10/Mines Skirmisher | -9/Materials Skirmisher | -9/Mines Mutant | -9/Exiles Mutant | -8/Mines Skirmisher | -8/Materials Skirmisher | -8/Garrison Skirmisher | -8/Materials Skirmisher | -8/Garrison Assassin | -7/Factory Skirmisher | -7/Garrison Skirmisher | -7/Factory Skirmisher | -7/Garrison Skirmisher | -6/Factory Skirmisher | -6/Garrison Assassin | -6/Factory Skirmisher | -6/Garrison Bothacker-Skirmisher | -5/Factory Scavenger-Gunner | -5/Garrison Scavenger-Assassin | -4/Factory Resources | -11 -10 -10 -9 -9 -9 -8 -8 -8 -8 -8 -7 -7 -7 -7 -6 -6 -6 -6 -5 -5 -4 ----------- Run | Yrd Mat Min Mat Min Exi Min Mat Gar Mat Gar Fac Gar Fac Gar Fac Gar Fac Gar Fac Gar Fac Matter Collected 11531 | 292 47 52 181 80 36 . 41 264 910 459 741 1129 333 830 618 412 167 837 728 1031 2343 Remotely 2933 | . . . . . . . . . 174 . 73 574 237 444 . 57 . 511 534 . 329 Salvage Created 11730 | 105 101 10 360 237 . . 71 621 915 208 667 709 379 1043 507 875 14 780 491 1630 2007 Parts 484 | 7 10 . 16 11 . . 4 32 44 14 20 41 9 34 15 45 . 32 14 61 75 Haulers Intercepted 4 | . 1 . 1 . . . . . 2 . . . . . . . . . . . . Recyclers Shooed 13 | . . . 1 . . . . . 1 . 3 . 1 . 2 . 1 . . . 4 Parts Field Recycled . | . . . . . . . . . . . . . . . . . . . . . . Retrieved Matter . | . . . . . . . . . . . . . . . . . . . . . . Parts Self-Destructed . | . . . . . . . . . . . . . . . . . . . . . . Prevented . | . . . . . . . . . . . . . . . . . . . . . . Kills | -11 -10 -10 -9 -9 -9 -8 -8 -8 -8 -8 -7 -7 -7 -7 -6 -6 -6 -6 -5 -5 -4 ------- Run | Yrd Mat Min Mat Min Exi Min Mat Gar Mat Gar Fac Gar Fac Gar Fac Gar Fac Gar Fac Gar Fac Combat Hostiles Destroyed 241 | . 3 1 7 8 . . . 20 21 10 3 22 3 21 4 23 . 26 5 26 38 Guns 33 | . 3 1 6 6 . . . 9 . . . . . . 2 4 . 1 . . 1 Cannons 83 | . . . . . . . . 2 13 4 3 12 . 3 1 . . 9 4 10 22 AOE 104 | . . . 1 2 . . . 8 8 5 . 9 3 9 . 16 . 15 . 13 15 Classes Destroyed 19 | 2 3 . 1 . . . 1 2 4 1 1 1 . . . 1 . . . . 2 Worker 16 | . . . . . . . . . 3 . 3 . 3 . 2 . . . 1 . 4 Builder 16 | . . . . . . . . . 3 . 2 . 1 . 1 . 1 . . . 8 Tunneler 5 | 1 . . . . . . . . 1 . 2 . . . . . . . . . 1 Hauler 4 | . 1 . 1 . . . . . 2 . . . . . . . . . . . . Recycler 20 | 1 . . 1 . . . . . 4 . 6 . 2 . 2 . . . 1 . 3 Mechanic 2 | . . . . . . . . . . . . . . . . . . . . . 2 Operator 3 | . . . . . . . 2 . . . 1 . . . . . . . . . . Watcher 4 | . 1 . . . . . 1 . . . . . . . . 1 . . . . 1 Swarmer 68 | . 3 1 4 4 . . . 6 7 5 . 4 3 6 . 7 . 8 . 10 . Saboteur 4 | . . . . . . . . . . . . . . . . 3 . . . . 1 Grunt 97 | . . . 3 4 . . . 12 4 3 . 12 . 10 1 6 . 13 3 12 14 Brawler 7 | . . . . . . . . . 1 . . . . . 1 2 . 1 . . 2 Duelist 6 | . . . . . . . . . 1 . . . . . . . . . . 1 4 Protector 1 | . . . . . . . . . . . . . . . . . . . . . 1 Sentry 25 | . . . . . . . . 1 6 1 2 4 . 3 1 2 . 3 . 2 . Specialist 9 | . . . . . . . . 1 2 . . . . . . 1 . . . . 5 Hunter 12 | . . . . . . . . . . 1 . . . 2 . 2 . . 2 1 4 Programmer 9 | . . . . . . . . . . . 1 . . . 1 . . . . . 7 Behemoth 3 | . . . . . . . . . . . . 2 . . . . . 1 . . . Best Kill Streak 12 | 2 3 1 7 6 . . 1 8 5 4 2 8 5 5 3 6 1 11 5 8 12 Combat Bots Only 11 | . 3 1 6 6 . . . 8 5 4 1 8 3 5 2 6 . 11 3 8 7 Max Kills in Single Turn 6 | 1 2 1 2 2 . . 1 3 3 2 1 3 3 3 1 3 1 3 1 3 6 Gunslinging 1 | . 1 . 1 . . . . 1 . . . . . . . . . . . . . Exploded 4 | . . . 1 1 . . . 3 2 2 . 3 2 3 . 3 . 3 . 3 4 Melee . | . . . . . . . . . . . . . . . . . . . . . . Uniques/NPCs Destroyed . | . . . . . . . . . . . . . . . . . . . . . . Combat | -11 -10 -10 -9 -9 -9 -8 -8 -8 -8 -8 -7 -7 -7 -7 -6 -6 -6 -6 -5 -5 -4 -------- Run | Yrd Mat Min Mat Min Exi Min Mat Gar Mat Gar Fac Gar Fac Gar Fac Gar Fac Gar Fac Gar Fac Hostile Shots Fired 1309 | . 20 20 27 20 . . . 42 72 28 48 186 14 78 69 91 . 139 21 81 353 Missed 426 | . 4 6 6 5 . . . 10 27 11 22 68 2 30 33 26 . 48 7 36 85 Damage Taken 13311 | . 134 330 176 210 . . . 514 634 267 358 1749 152 552 330 817 . 1459 260 969 4400 Core 1304 | . 9 99 31 60 . . . 24 78 . . 155 27 54 52 159 . 149 69 82 256 Absorbed by Shields 596 | . . . . . . . . . . . . . . 33 . 144 . 107 33 22 257 Reduced by Siege Mode 291 | . . . . . . . . . . . . . . . . . . . . . 291 Ignored by Resistances 506 | . . . . . . . . 63 . . 8 241 . 29 . . . 51 . 22 92 Core Remaining (%) 74 | 100 . 56 . . . 77 . . . 81 . . . 66 . . . 57 . 84 . Volleys Fired 548 | 3 9 1 14 10 . . 4 28 41 20 28 56 11 48 13 35 . 48 19 71 89 Largest 4 | 2 2 1 3 3 . . 4 4 3 3 4 4 1 2 3 4 . 3 1 3 4 Hottest 211 | 40 40 20 135 135 . . 180 198 171 162 195 192 33 136 208 211 . 179 94 169 192 Shots Fired 968 | 6 18 1 37 29 . . 13 66 99 30 56 136 12 52 24 63 2 78 19 79 148 Gun 257 | 6 18 1 37 29 . . 13 51 . . 22 1 1 . 8 49 . 6 . . 15 Cannon 549 | . . . . . . . . 9 87 22 34 111 1 24 10 3 2 57 14 62 113 Launcher 130 | . . . . . . . . 6 7 8 . 24 3 28 . 11 . 15 . 11 17 Special 32 | . . . . . . . . . 5 . . . 7 . 6 . . . 5 6 3 Kinetic 504 | 6 18 1 . . . . . 9 87 22 56 103 2 1 6 3 2 40 . 21 127 Thermal 7 | . . . 1 . . . 1 5 . . . . . . . . . . . . . Explosive 69 | . . . . . . . . 6 7 2 . 5 . 2 . 11 . 15 . 4 17 Electromagnetic 356 | . . . 36 29 . . 12 46 . 6 . 28 3 49 12 49 . 23 14 48 1 Robot Hit Streak 29 | 4 4 5 5 7 . . 9 10 12 8 8 28 29 21 4 29 1 9 9 11 25 Robot Miss Streak 6 | . 1 . 4 6 . . 3 4 2 2 4 3 1 2 3 3 1 3 3 3 1 Penetration Max 1 | . . . . . . . . . 1 . . . 1 . . . . . . . 1 Secondary Targets 6 | . 1 . 2 . . . . 3 . . . . . . . . . . . . . Max Gunslinging Chain 1 | . 1 . 1 . . . . 1 . . . . . . . . . . . . . Shots Hit Robots 666 | 4 12 1 21 16 . . 7 39 68 17 39 98 11 37 21 45 2 51 14 49 114 Core Hits 435 | 2 6 1 11 12 . . 4 41 30 12 12 40 8 26 7 36 . 43 6 37 101 Critical Kills 1 | . . . . . . . . . . . . . . . . . . . . . 1 Critical Parts Destroyed 8 | . . . . . . . . . 2 . 3 . . . . . 1 . . . 2 Critical Strikes 49 | . . . 1 1 . . . 2 6 . 3 6 . 1 . 3 1 3 2 1 19 Destroy 2 | . . . . . . . . . . . 1 . . . . . . . . . 1 Blast 29 | . . . . . . . . . 4 . . 5 . . . . . 3 . 1 16 Corrupt 10 | . . . 1 1 . . . 2 . . . 1 . . . 3 . . 2 . . Smash 8 | . . . . . . . . . 2 . 2 . . 1 . . 1 . . . 2 Melee Attacks 89 | . . . . . . . . 1 18 5 22 1 5 6 10 1 4 . 3 . 13 Impact 89 | . . . . . . . . 1 18 5 22 1 5 6 10 1 4 . 3 . 13 Slashing . | . . . . . . . . . . . . . . . . . . . . . . Piercing . | . . . . . . . . . . . . . . . . . . . . . . Sneak Attacks 27 | . . . . . . . . . 8 . 8 . 3 . 5 . 1 . . . 2 Combat Hostiles . | . . . . . . . . . . . . . . . . . . . . . . Follow-up Attacks . | . . . . . . . . . . . . . . . . . . . . . . Damage Inflicted 35184 | 47 162 17 433 352 . . 220 1701 3416 991 1665 3257 534 2436 821 2329 171 3613 516 3153 9350 Guns 3217 | 47 162 14 310 224 . . 128 544 . . 339 . 48 . 150 817 . 100 . . 334 Cannons 14378 | . . . . . . . . 127 2245 437 508 2202 . 631 203 74 39 1395 516 1777 4224 Explosions 14616 | . . . 123 113 . . 92 1030 553 554 . 1055 191 1445 . 1438 . 2118 . 1376 4528 Melee 2903 | . . . . . . . . . 618 . 818 . 295 360 468 . 132 . . . 212 Ramming 70 | . . 3 . 15 . . . . . . . . . . . . . . . . 52 Kinetic 12103 | 47 162 14 . . . . . 127 2245 437 847 2008 48 23 84 53 39 929 . 482 4558 Thermal 1275 | . . . 141 113 . . 92 201 . . . 60 38 97 . . . 82 . 155 296 Explosive 11192 | . . . . . . . . 905 553 366 . 486 . 423 . 1438 . 2036 . 753 4232 Electromagnetic 7641 | . . . 292 224 . . 128 468 . 188 . 703 153 1533 269 838 . 566 516 1763 . Impact 2903 | . . . . . . . . . 618 . 818 . 295 360 468 . 132 . . . 212 Slashing . | . . . . . . . . . . . . . . . . . . . . . . Piercing . | . . . . . . . . . . . . . . . . . . . . . . Highest Corruption 42 | . 1 1 1 1 1 1 . . . . 2 1 2 2 2 7 7 7 . 42 7 Average Corruption 4 | . 1 1 1 1 1 1 . . . . 1 1 1 1 2 6 7 7 . 20 5 Corruption Purged 5 | . . . . . . . . . . . 2 . 1 2 . . . . . . . Corruption Blocked . | . . . . . . . . . . . . . . . . . . . . . . Effects 148 | . . 2 1 5 2 . . . . . 2 5 3 . 2 29 16 37 . 3 41 Message Errors 38 | . . . . . . . . . . . . 3 1 . . 9 4 9 . 1 11 Matter Fused 42 | . . . 1 2 1 . . . . . 1 2 . . 1 8 2 11 . 1 12 Heat Flow Errors 14 | . . . . 1 1 . . . . . 1 . . . . 3 2 1 . 1 4 Energy Discharges 20 | . . 1 . 2 . . . . . . . . 1 . 1 3 3 7 . . 2 Parts Rejected 5 | . . 1 . . . . . . . . . . . . . 1 . 1 . . 2 Data Loss (minor) 14 | . . . . . . . . . . . . . . . . 3 2 4 . . 5 Data Loss (major) 4 | . . . . . . . . . . . . . . . . . . 3 . . 1 Misfires 4 | . . . . . . . . . . . . . 1 . . . 2 1 . . . Alerts 4 | . . . . . . . . . . . . . . . . 2 1 . . . 1 Weapon Failures 3 | . . . . . . . . . . . . . . . . . . . . . 3 Overload Shots . | . . . . . . . . . . . . . . . . . . . . . . Overflow Damage 2701 | . . . 2 . . . . 41 405 46 611 69 185 103 288 1 132 71 . 13 734 Projectiles 476 | . . . . . . . . . 92 17 48 41 . 35 . . . 7 . 3 233 Explosions 548 | . . . 2 . . . . 41 8 29 47 28 . 29 . 1 . 64 . 10 289 Melee 1677 | . . . . . . . . . 305 . 516 . 185 39 288 . 132 . . . 212 Knockbacks 82 | . . . . . . . . 1 14 6 7 10 1 3 4 . 1 2 . 2 31 Impact 13 | . . . . . . . . . 2 . 4 . 1 3 2 . . . . . 1 Kinetic 65 | . . . . . . . . 1 12 6 2 10 . . 1 . 1 2 . 2 28 Secondary 4 | . . . . . . . . . . . 1 . . . 1 . . . . . 2 Self-Inflicted Damage 924 | . . . . 57 . . . 75 . 59 81 86 9 24 . 70 . 134 . 96 233 Shots 28 | . . . . 1 . . . 2 . 3 1 3 1 2 . 1 . 3 . 4 7 Rammed 6 | . . 2 . 1 . . . . . . . . . . . . . . . . 3 Targets Rammed 6 | . . 2 . 1 . . . . . . . . . . . . . . . . 3 Kicked . | . . . . . . . . . . . . . . . . . . . . . . Crushed . | . . . . . . . . . . . . . . . . . . . . . . Highest Temperature 420 | . . . 174 391 244 . 105 317 342 123 245 420 . 336 216 232 211 199 256 336 262 Average Temperature 94 | . . . 80 161 123 . 43 122 114 43 91 118 . 103 86 66 80 100 107 77 51 Received Heat Transfer 3184 | . 9 60 27 51 . . . 288 180 99 48 737 18 217 129 117 . 393 81 153 577 Effects 8 | . . . . 1 . . . 1 . . . 3 . 2 . . . . . 1 . Shutdowns 1 | . . . . . . . . . . . . . . . . . . . . 1 . Energy Bleed 2 | . . . . . . . . 1 . . . . . 1 . . . . . . . Interference 2 | . . . . . . . . . . . . 2 . . . . . . . . . Matter Decay 2 | . . . . . . . . . . . . 1 . 1 . . . . . . . Damage (minor) 1 | . . . . 1 . . . . . . . . . . . . . . . . . Siege Activations 10 | . . . . . . . . . . . . . . . . . . . . . 10 Total Turns 158 | . . . . . . . . . . . . . . . . . . . . . 158 Longest Duration 28 | . . . . . . . . . . . . . . . . . . . . . 28 Robots Corrupted 39 | . . . 1 . . . . 1 3 1 3 1 2 10 4 3 . 1 1 7 1 Combat Hostiles 22 | . . . . . . . . 1 . 1 . 1 . 10 1 3 . 1 1 3 . Parts Fried 97 | . . . 1 1 . . 1 . 8 . 10 2 7 14 13 10 3 3 4 15 5 Impact Corruptions 47 | . . . . . . . . . 10 . 12 . 6 3 10 . 2 . . . 4 Robots Melted . | . . . . . . . . . . . . . . . . . . . . . . Combat Hostiles . | . . . . . . . . . . . . . . . . . . . . . . Parts Melted 1 | . . . . . . . . 1 . . . . . . . . . . . . . Heat Transferred 1272 | . . . 237 50 . . 50 298 . . . 100 50 100 . . . 50 . 137 200 Parts Sabotaged . | . . . . . . . . . . . . . . . . . . . . . . Parts Stolen . | . . . . . . . . . . . . . . . . . . . . . . Parts Stripped . | . . . . . . . . . . . . . . . . . . . . . . Power Chain Reactions 19 | . . . 3 2 . . 2 3 . . . 2 1 3 . . . 1 . 2 . Alert | -11 -10 -10 -9 -9 -9 -8 -8 -8 -8 -8 -7 -7 -7 -7 -6 -6 -6 -6 -5 -5 -4 ------- Run | Yrd Mat Min Mat Min Exi Min Mat Gar Mat Gar Fac Gar Fac Gar Fac Gar Fac Gar Fac Gar Fac Peak Influence 1890 | 10 112 78 294 315 . . 103 668 654 615 322 785 478 813 603 1048 600 1202 630 1370 1890 Initial 718 | . 6 43 26 114 . . . 66 325 298 322 61 411 168 426 141 550 284 630 352 718 Average 526 | 5 58 49 129 136 . . 78 352 405 425 115 483 370 543 380 549 544 792 502 920 1270 Maximum Alert Level 5 | . . . 1 1 . . . 2 2 2 1 3 2 3 2 3 2 4 2 4 5 Low Security (%) 23 | 100 100 100 65 69 . 100 100 16 5 . 86 12 . 8 34 18 . . . . . Level 1 18 | . . . 34 30 . . . 22 36 62 13 7 46 18 3 7 . 19 27 12 . Level 2 33 | . . . . . . . . 60 58 37 . 77 53 58 62 41 100 8 72 13 . Level 3 14 | . . . . . . . . . . . . 2 . 14 . 33 . 58 . 47 38 Level 4 7 | . . . . . . . . . . . . . . . . . . 13 . 25 38 Level 5 2 | . . . . . . . . . . . . . . . . . . . . . 23 High Security . | . . . . . . . . . . . . . . . . . . . . . . Max Security . | . . . . . . . . . . . . . . . . . . . . . . Squads Dispatched 35 | . 2 . 3 1 . . 1 . 2 . 4 . 1 . 3 . 1 . . . 17 Investigation 5 | . 2 . 1 . . . . . . . 1 . . . . . . . . . 1 Extermination 5 | . . . . . . . . . . . 1 . 1 . . . . . . . 3 Reinforcement 18 | . . . 2 1 . . 1 . 2 . 2 . . . 3 . 1 . . . 6 Assault 7 | . . . . . . . . . . . . . . . . . . . . . 7 Garrison . | . . . . . . . . . . . . . . . . . . . . . . Intercept . | . . . . . . . . . . . . . . . . . . . . . . Searches Triggered . | . . . . . . . . . . . . . . . . . . . . . . Construction Impeded 3 | . . . . 1 . . . . . . 1 . . . . . . . . . 1 Haulers Reinforced . | . . . . . . . . . . . . . . . . . . . . . . Active Scanning Responses . | . . . . . . . . . . . . . . . . . . . . . . Cargo Convoy Interrupts 1 | . . . . . . . . . . . 1 . . . . . . . . . . Stealth | -11 -10 -10 -9 -9 -9 -8 -8 -8 -8 -8 -7 -7 -7 -7 -6 -6 -6 -6 -5 -5 -4 --------- Run | Yrd Mat Min Mat Min Exi Min Mat Gar Mat Gar Fac Gar Fac Gar Fac Gar Fac Gar Fac Gar Fac Distress Signals 10 | . . . 1 . . . 2 . 5 . . . . . . . 1 . 1 . . Communications Jammed 146 | . . . . . . . . 8 12 . . . . . . 10 . . 60 . 56 Distress Signals 144 | . . . . . . . . 8 12 . . . . . . 10 . . 58 . 56 Times Spotted 326 | . 7 16 9 8 . . 4 23 32 7 7 19 8 20 12 23 1 34 16 19 61 Peak Tracking Total 9 | . 3 9 5 5 . . 2 9 5 2 1 5 3 5 3 5 1 7 5 4 9 Tactical Retreats 12 | . . 3 . . . . . 1 1 . . 1 . 2 . 1 . . . . 3 Traps | -11 -10 -10 -9 -9 -9 -8 -8 -8 -8 -8 -7 -7 -7 -7 -6 -6 -6 -6 -5 -5 -4 ------- Run | Yrd Mat Min Mat Min Exi Min Mat Gar Mat Gar Fac Gar Fac Gar Fac Gar Fac Gar Fac Gar Fac Traps Triggered 54 | . 1 . . . . . . 8 1 4 1 4 3 5 1 2 . 5 1 17 1 Indirectly 4 | . . . . . . . . . . . . . . . . . . . . 4 . Trap Hack Attempts . | . . . . . . . . . . . . . . . . . . . . . . Triggered . | . . . . . . . . . . . . . . . . . . . . . . Disarmed 6 | . . . . . . . . . . . . . . . . . . . 6 . . Reprogrammed . | . . . . . . . . . . . . . . . . . . . . . . Reused . | . . . . . . . . . . . . . . . . . . . . . . Traps Extracted . | . . . . . . . . . . . . . . . . . . . . . . Installed . | . . . . . . . . . . . . . . . . . . . . . . Triggered 4 | . . . . . . . . . . . 2 . . . . . . . . 2 . Machines | -11 -10 -10 -9 -9 -9 -8 -8 -8 -8 -8 -7 -7 -7 -7 -6 -6 -6 -6 -5 -5 -4 ---------- Run | Yrd Mat Min Mat Min Exi Min Mat Gar Mat Gar Fac Gar Fac Gar Fac Gar Fac Gar Fac Gar Fac Machines Disabled 56 | . . . 4 . . . 2 1 2 1 6 3 2 2 . 1 . 4 . 7 21 Max in Single Turn 4 | . . . 4 . . . 2 1 1 1 4 1 2 1 . 1 . 2 . 2 3 Garrison Access 3 | . . . . . . . . . . . 1 . 1 . . . . . . . 1 Garrison Relay 6 | . . . . . . . . 1 . . . 1 . 1 . 1 . 1 . 1 . Phase Generator 3 | . . . . . . . . . . . . 1 . . . . . 1 . 1 . Machines Repaired . | . . . . . . . . . . . . . . . . . . . . . . Machines Dismantled . | . . . . . . . . . . . . . . . . . . . . . . Machines Sabotaged . | . . . . . . . . . . . . . . . . . . . . . . Overloaded Fab Kills . | . . . . . . . . . . . . . . . . . . . . . . Hacking | -11 -10 -10 -9 -9 -9 -8 -8 -8 -8 -8 -7 -7 -7 -7 -6 -6 -6 -6 -5 -5 -4 --------- Run | Yrd Mat Min Mat Min Exi Min Mat Gar Mat Gar Fac Gar Fac Gar Fac Gar Fac Gar Fac Gar Fac Machines Accessed 50 | . 4 . 2 . 1 . 7 2 7 2 8 . 3 3 1 1 2 . 5 . 2 Terminals 38 | . 4 . 2 . . . 6 2 5 2 6 . 1 3 . 1 1 . 3 . 2 Fabricators . | . . . . . . . . . . . . . . . . . . . . . . Repair Stations . | . . . . . . . . . . . . . . . . . . . . . . Recycling Units 2 | . . . . . . . . . 1 . . . . . . . . . 1 . . Scanalyzers . | . . . . . . . . . . . . . . . . . . . . . . Garrison Access 9 | . . . . . . . 1 . 1 . 2 . 2 . 1 . 1 . 1 . . Total Hacks 129 | . 16 . 8 . 1 . 26 4 17 7 20 . 3 4 1 1 4 . 14 . 3 Successful 61 | . 7 . 2 . 1 . 16 2 10 1 9 . 2 1 1 . 2 . 6 . 1 Failed 66 | . 9 . 5 . . . 10 2 7 6 10 . 1 3 . 1 2 . 8 . 2 Catastrophic 11 | . . . 2 . . . . . . . 4 . 1 2 . . 1 . 1 . . Database Lockouts 2 | . . . 1 . . . . . . . 1 . . . . . . . . . . Manual 81 | . 16 . 8 . 1 . 22 . 8 . 12 . 1 . . . 1 . 10 . 2 Terminals 116 | . 16 . 8 . . . 25 4 14 7 18 . 1 4 . 1 3 . 12 . 3 Fabricators . | . . . . . . . . . . . . . . . . . . . . . . Repair Stations . | . . . . . . . . . . . . . . . . . . . . . . Recycling Units 3 | . . . . . . . . . 2 . . . . . . . . . 1 . . Scanalyzers . | . . . . . . . . . . . . . . . . . . . . . . Garrison Access 9 | . . . . . . . 1 . 1 . 2 . 2 . 1 . 1 . 1 . . Terminal Hacks 35 | . 3 . 1 . 1 . 11 2 5 1 4 . . 1 . . 1 . 4 . 1 Part Schematic 1 | . . . . . . . . . . . 1 . . . . . . . . . . Robot Analysis 12 | . 3 . 1 . . . 5 . 1 . 1 . . . . . . . 1 . . Prototype ID Bank 4 | . . . . . . . 3 . 1 . . . . . . . . . . . . Open Door 1 | . . . . . . . . 1 . . . . . . . . . . . . . Terminal Index 2 | . . . . . . . 1 . . . 1 . . . . . . . . . . Unreport Threat 4 | . . . . . . . . . 2 . 1 . . . . . . . 1 . . Locate Traps 5 | . . . . . . . 1 . 1 . . . . . . . 1 . 1 . 1 Disarm Traps 1 | . . . . . . . . . . . . . . . . . . . 1 . . Zone Layout 1 | . . . . . . . 1 . . . . . . . . . . . . . . Garrison Registry 2 | . . . . . . . . 1 . 1 . . . . . . . . . . . Patrol Navigation 1 | . . . . . . . . . . . . . . 1 . . . . . . . Derelict Proto ID Bank 1 | . . . . . 1 . . . . . . . . . . . . . . . . Fabricator Hacks . | . . . . . . . . . . . . . . . . . . . . . . Repair Station Hacks . | . . . . . . . . . . . . . . . . . . . . . . Recycling Unit Hacks 2 | . . . . . . . . . 2 . . . . . . . . . . . . Process 1 | . . . . . . . . . 1 . . . . . . . . . . . . Retrieve Matter 1 | . . . . . . . . . 1 . . . . . . . . . . . . Scanalyzer . | . . . . . . . . . . . . . . . . . . . . . . Garrison Access Hacks 9 | . . . . . . . 1 . 1 . 2 . 2 . 1 . 1 . 1 . . Unlock Access 7 | . . . . . . . 1 . 1 . 1 . 1 . 1 . 1 . 1 . . Seal Access 2 | . . . . . . . . . . . 1 . 1 . . . . . . . . Unauthorized Hacks 15 | . 4 . 1 . . . 4 . 2 . 3 . . . . . . . 1 . . Terminals 14 | . 4 . 1 . . . 4 . 2 . 3 . . . . . . . . . . Track 6 | . 2 . . . . . 2 . 1 . 1 . . . . . . . . . . Botnet 8 | . 2 . 1 . . . 2 . 1 . 2 . . . . . . . . . . Fabricators . | . . . . . . . . . . . . . . . . . . . . . . Repair Stations . | . . . . . . . . . . . . . . . . . . . . . . Recycling Units 1 | . . . . . . . . . . . . . . . . . . . 1 . . Recyclers 1 | . . . . . . . . . . . . . . . . . . . 1 . . Scanalyzers . | . . . . . . . . . . . . . . . . . . . . . . Garrison Access . | . . . . . . . . . . . . . . . . . . . . . . Data Cores Recovered 3 | . . . . . . . 2 . . . 1 . . . . . . . . . . Used 3 | . . . . . . . 2 . . . 1 . . . . . . . . . . Hacking Detections 38 | . 4 . 2 . . . 7 2 5 1 6 . 2 2 . 1 1 . 4 . 1 Full Trace Events 8 | . 2 . 2 . . . . . . 1 1 . . 1 . . . . . . 1 Feedback Events 2 | . 1 . 1 . . . . . . . . . . . . . . . . . . Corruption 2 | . 1 . 1 . . . . . . . . . . . . . . . . . . Feedback Blocked . | . . . . . . . . . . . . . . . . . . . . . . Robot Schematics Acquired . | . . . . . . . . . . . . . . . . . . . . . . Robots Built . | . . . . . . . . . . . . . . . . . . . . . . Authchips . | . . . . . . . . . . . . . . . . . . . . . . Time . | . . . . . . . . . . . . . . . . . . . . . . Total Robot Build Rating . | . . . . . . . . . . . . . . . . . . . . . . Part Schematics Acquired 1 | . . . . . . . . . . . 1 . . . . . . . . . . Parts Built . | . . . . . . . . . . . . . . . . . . . . . . Authchips . | . . . . . . . . . . . . . . . . . . . . . . Time . | . . . . . . . . . . . . . . . . . . . . . . Total Part Build Rating . | . . . . . . . . . . . . . . . . . . . . . . Parts Repaired . | . . . . . . . . . . . . . . . . . . . . . . Time . | . . . . . . . . . . . . . . . . . . . . . . Parts Recycled . | . . . . . . . . . . . . . . . . . . . . . . Recycled Matter 262 | . . . . . . . . . 262 . . . . . . . . . . . . Retrieved Matter 348 | . . . . . . . . . 348 . . . . . . . . . . . . Retrieved Components . | . . . . . . . . . . . . . . . . . . . . . . Parts Scanalyzed . | . . . . . . . . . . . . . . . . . . . . . . Part Schematics Acquired . | . . . . . . . . . . . . . . . . . . . . . . Parts Damaged . | . . . . . . . . . . . . . . . . . . . . . . Bothacking | -11 -10 -10 -9 -9 -9 -8 -8 -8 -8 -8 -7 -7 -7 -7 -6 -6 -6 -6 -5 -5 -4 ------------ Run | Yrd Mat Min Mat Min Exi Min Mat Gar Mat Gar Fac Gar Fac Gar Fac Gar Fac Gar Fac Gar Fac Used RIF Installer 7 | . . . . . . . . 1 . 1 . 1 . 1 . 1 . 1 . 1 . Coupler Efficiency 1 | . . . . . . . . . . . . . . . . . . . . 1 . Hotswap 1 | . . . . . . . . . . . . . . . . 1 . . . . . Command Fork 1 | . . . . . . . . . . . . . . 1 . . . . . . . Signal Jammer 1 | . . . . . . . . . . 1 . . . . . . . . . . . Structural Interface 1 | . . . . . . . . . . . . 1 . . . . . . . . . Program Shield 1 | . . . . . . . . . . . . . . . . . . 1 . . . Robots Hacked 22 | . . . . . . . . . 3 . . . 3 . 3 . . . 5 6 2 Non-combat 9 | . . . . . . . . . 3 . . . 2 . 2 . . . 1 . 1 Combat 13 | . . . . . . . . . . . . . 1 . 1 . . . 4 6 1 Robot Hacks Applied 27 | . . . . . . . . . 3 . . . 5 . 5 . . . 5 6 3 purge_threat 5 | . . . . . . . . . . . . . 1 . 2 . . . . . 2 block_reporting 1 | . . . . . . . . . . . . . 1 . . . . . . . . map_route 6 | . . . . . . . . . 3 . . . 1 . 1 . . . 1 . . find_garrison 2 | . . . . . . . . . . . . . 1 . 1 . . . . . . scatter_targeting 3 | . . . . . . . . . . . . . . . . . . . . 3 . link_complan 1 | . . . . . . . . . . . . . . . . . . . . 1 . disrupt_area 1 | . . . . . . . . . . . . . . . . . . . . 1 . overwrite_iff 3 | . . . . . . . . . . . . . . . . . . . 2 1 . formatsys_high 4 | . . . . . . . . . . . . . 1 . 1 . . . 2 . . formatsys_deep 1 | . . . . . . . . . . . . . . . . . . . . . 1 Relay Couplers Released 26 | . . . . . . . . 3 . . . 5 . 3 . 4 . 4 . 5 2 Machine Destruction 26 | . . . . . . . . 3 . . . 5 . 3 . 4 . 4 . 5 2 Attached 10 | . . . . . . . . . 1 . . . 2 . 2 . . . 3 1 1 Fabnet Peak Effective % . | . . . . . . . . . . . . . . . . . . . . . . Robots Rewired 2 | . . . . . . . . . . . . . . . . . . 2 . . . Allies Hacked 1 | . . . . . . . . . . . . . . . 1 . . . . . . Hacks Repelled . | . . . . . . . . . . . . . . . . . . . . . . Allies | -11 -10 -10 -9 -9 -9 -8 -8 -8 -8 -8 -7 -7 -7 -7 -6 -6 -6 -6 -5 -5 -4 -------- Run | Yrd Mat Min Mat Min Exi Min Mat Gar Mat Gar Fac Gar Fac Gar Fac Gar Fac Gar Fac Gar Fac Total Allies 13 | . . . . . . . . 1 . . . . 1 . 1 2 . 2 4 1 1 Largest Group 2 | . . . . . . . . 1 . . . . 1 . 1 2 1 2 2 1 1 Highest-Rated Group 198 | . . . . . . . . 31 . . . . 32 . 32 157 62 198 178 12 27 Highest-Rated Ally 99 | . . . . . . . . 31 . . . . 32 . 32 95 62 99 89 12 27 Total Orders 13 | . . . . . . . . . . . 7 . 1 . . . . 3 2 . . ROAM 1 | . . . . . . . . . . . . . . . . . . 1 . . . FOLLOW 2 | . . . . . . . . . . . . . . . . . . 2 . . . EXPLORE 8 | . . . . . . . . . . . 5 . 1 . . . . . 2 . . RETURN 2 | . . . . . . . . . . . 2 . . . . . . . . . . Ally Attacks 101 | . . . . . . . . 14 . . . . 6 . 12 22 3 16 24 4 . Total Damage 3095 | . . . . . . . . 207 . . . . 195 . 419 896 51 572 709 46 . Kills 21 | . . . . . . . . 2 . . . . 1 . 2 7 1 2 5 1 . Allies Corrupted . | . . . . . . . . . . . . . . . . . . . . . . Allies Melted . | . . . . . . . . . . . . . . . . . . . . . . Intel | -11 -10 -10 -9 -9 -9 -8 -8 -8 -8 -8 -7 -7 -7 -7 -6 -6 -6 -6 -5 -5 -4 ------- Run | Yrd Mat Min Mat Min Exi Min Mat Gar Mat Gar Fac Gar Fac Gar Fac Gar Fac Gar Fac Gar Fac Robot Analysis Total 12 | . 3 . 1 . . . 5 . 1 . 1 . . . . . . . 1 . . Derelict Logs Recovered 3 | . . 1 . 2 . . . . . . . . . . . . . . . . . Drone Launches 7 | . . . . . . . . . . . 4 . 1 . . . . . 2 . . Drone Recoveries 4 | . . . . . . . . . . . 4 . . . . . . . . . . Exploration | -11 -10 -10 -9 -9 -9 -8 -8 -8 -8 -8 -7 -7 -7 -7 -6 -6 -6 -6 -5 -5 -4 ------------- Run | Yrd Mat Min Mat Min Exi Min Mat Gar Mat Gar Fac Gar Fac Gar Fac Gar Fac Gar Fac Gar Fac Turns Passed 17157 | 55 283 136 271 1024 288 16 371 768 1441 901 1460 1236 750 1035 700 1037 491 1121 671 1312 1790 Spaces Moved 9655 | 40 269 118 160 802 267 12 269 422 726 426 781 638 435 539 446 600 319 528 416 627 815 Core 19 | 18 . . . . . . . . . . . . . . . . . . . . 1 Treads 925 | . . 27 6 . . . . . . . 11 . . . . . . 23 . 44 814 Legs 1 | . . . . . . . . . . . . . . . . . . . . 1 . Wheels 8710 | 22 269 91 154 802 267 12 269 422 726 426 770 638 435 539 446 600 319 505 416 582 . Hover . | . . . . . . . . . . . . . . . . . . . . . . Flight . | . . . . . . . . . . . . . . . . . . . . . . Fastest Speed 50 | 50 90 90 100 120 105 120 120 135 150 185 145 129 146 146 122 122 140 140 122 146 50 Average Speed 147 | 72 90 107 116 120 105 120 121 144 164 189 156 149 152 157 129 147 146 175 139 163 159 Slowest Speed 820 | 100 100 160 160 145 120 120 135 150 245 245 245 220 163 163 138 170 170 465 153 820 160 Overloaded Moves . | . . . . . . . . . . . . . . . . . . . . . . Propulsion Burnouts . | . . . . . . . . . . . . . . . . . . . . . . Robots Hopped . | . . . . . . . . . . . . . . . . . . . . . . Cave-ins Triggered . | . . . . . . . . . . . . . . . . . . . . . . Exploration Rate (%) 47 | 4 49 43 27 100 65 6 33 57 78 65 40 68 21 85 18 92 10 72 10 76 33 Regions Visited 21 Branch Regions 4 Pre-discovered Areas 3 | . . . . 3 . . . . . . . . . . . . . . . . . Known Exits Taken 7 | . . . . . . . 1 . 1 . 1 . 1 . 1 . 1 . 1 . . Unknown Exits Taken 7 | 1 1 1 1 1 1 1 . . . . . . . . . . . . . . . Scrap Searched 2 | . . . . 2 . . . . . . . . . . . . . . . . . Spaces Dug 47 | . . . . . . . . 2 8 . 12 1 2 . 5 . 3 . 3 . 11 Terrain Destroyed 1165 | . . . . 17 . . 3 22 101 3 46 125 2 39 8 115 4 218 3 109 350 Melee 44 | . . . . . . . . . 8 . 12 1 2 . 5 . 3 . 3 . 10 Projectile 113 | . . . . . . . . 2 38 3 16 6 . . 3 . 1 6 . 7 31 AOE 1008 | . . . . 17 . . 3 20 55 . 18 118 . 39 . 115 . 212 . 102 309 Terrain Rammed . | . . . . . . . . . . . . . . . . . . . . . . Walls Destroyed . | . . . . . . . . . . . . . . . . . . . . . . Machines Disabled . | . . . . . . . . . . . . . . . . . . . . . . Actions | -11 -10 -10 -9 -9 -9 -8 -8 -8 -8 -8 -7 -7 -7 -7 -6 -6 -6 -6 -5 -5 -4 --------- Run | Yrd Mat Min Mat Min Exi Min Mat Gar Mat Gar Fac Gar Fac Gar Fac Gar Fac Gar Fac Gar Fac Total 11499 | 56 291 124 213 837 277 13 304 529 868 485 925 804 501 655 528 685 341 640 489 836 1098 Wait 286 | . . . 5 13 . 2 9 22 11 4 21 23 14 11 8 18 2 8 10 9 96 Move 9628 | 39 268 117 159 801 266 11 268 421 725 424 780 636 434 537 445 598 318 526 415 625 815 Hop . | . . . . . . . . . . . . . . . . . . . . . . Pick Up 193 | 6 6 . 11 3 2 . 9 11 18 1 14 18 5 5 14 6 6 6 10 23 19 Fast Attach 55 | 6 . 1 7 . . . 1 2 1 . 8 3 6 . 1 1 . 1 4 3 10 Attach 94 | 1 . 1 3 2 3 . 2 1 6 2 6 8 5 4 6 2 . 8 4 10 20 Detach 34 | . . . 3 . 2 . 1 . 3 1 4 1 4 1 2 . . 3 2 4 3 Swap 295 | 1 4 2 6 7 . . 6 10 28 9 31 42 11 21 23 16 4 18 11 20 25 Drop 132 | . 4 . 5 . 4 . 4 9 17 3 11 12 6 2 6 4 7 1 8 24 5 Fire 548 | 3 9 1 14 10 . . 4 28 41 20 28 56 11 48 13 35 . 48 19 71 89 Melee 89 | . . . . . . . . 1 18 5 22 1 5 6 10 1 4 . 3 . 13 Ram 1 | . . . . 1 . . . . . . . . . . . . . . . . . Kick . | . . . . . . . . . . . . . . . . . . . . . . Crush 5 | . . 2 . . . . . . . . . . . . . . . . . . 3 Escape Stasis 125 | . . . . . . . . 24 . 16 . 4 . 20 . 4 . 7 3 47 . Rewire 14 | . . . . . . . . . . . . . . . . . . 14 . . . Trap . | . . . . . . . . . . . . . . . . . . . . . . Miscellaneous . | . . . . . . . . . . . . . . . . . . . . . . Route ------- -11/Scrapyard -10/Materials (discovered 3 exits: *Mat / [*Min x2]) -10/Mines -9/Materials -9/Mines (discovered 3 exits: *Mat x2 / *Exi) -9/Exiles (discovered 2 exits: [*Min x2]) -8/Mines -8/Materials (discovered 2 exits: [*Sto] / Gar) -8/Garrison (discovered 4 exits: *Mat x4) -8/Materials (discovered 5 exits: *Fac x2 / [*Sto x2] / Gar) -8/Garrison (discovered 4 exits: *Fac x3 / [Mat]) -7/Factory (discovered 4 exits: *Fac x2 / [*Low] / Gar) -7/Garrison (discovered 2 exits: *Fac x2) -7/Factory (discovered 3 exits: *Fac / [Low] / Gar) -7/Garrison (discovered 3 exits: *Fac x3) -6/Factory -6/Garrison (discovered 3 exits: *Fac x3) -6/Factory -6/Garrison (discovered 3 exits: *Fac x3) -5/Factory (discovered 2 exits: *Fac / Gar) -5/Garrison (discovered 3 exits: *Fac x3) -4/Factory History --------- Turn | Location | Event 7 | -11/Scrapyard | Discovered new exit (range 15) 56 | -11/Scrapyard | Entered Materials 56 | -10/Materials | Discovered new exit (range 12) 224 | -10/Materials | Discovered new exit (range 13) 274 | -10/Materials | Discovered new exit (range 16) 301 | -10/Materials | Build established: Mutant 339 | -10/Materials | Entered Mines 368 | -10/Mines | Assembled infested the area 368 | -10/Mines | Found a hidden stash of uninstalled traps 408 | -10/Mines | Found a damaged Exp. Sensor Array with a note attached 457 | -10/Mines | Learned Materials terminal intel 458 | -10/Mines | Lost 4 parts (1p1n2w) 468 | -10/Mines | Discovered new exit (range 5) 475 | -10/Mines | Entered Materials 475 | -9/Materials | Evolved 2 slots: Utility x1, Weapon x1 476 | -9/Materials | Loaded intel: 12 terminal locations 686 | -9/Materials | Discovered new exit (range 9) 718 | -9/Materials | Central database locked down 746 | -9/Materials | Entered Mines 775 | -9/Mines | Met a Derelict bent on vengeance 862 | -9/Mines | Discovered new exit (range 5) 936 | -9/Mines | Discovered new exit (range 15) 1243 | -9/Mines | Learned location of Recycling (-8) 1270 | -9/Mines | Learned location of Storage (-8) 1427 | -9/Mines | Build established: Tank 1765 | -9/Mines | Deemed a non-threat by the Exiles lab entrance 1765 | -9/Mines | Discovered new exit (range 5) 1770 | -9/Mines | Entered Exiles 1786 | -9/Exiles | Discovered new exit (range 15) 1801 | -9/Exiles | Met 8R-AWN 1817 | -9/Exiles | Met EX-HEX 1884 | -9/Exiles | Met EX-BIN 1895 | -9/Exiles | Aligned with FarCom system 1896 | -9/Exiles | Given EX-Vault access code 1921 | -9/Exiles | Opened EX-Vault 1927 | -9/Exiles | Found Supersonic Drone Bay 1949 | -9/Exiles | Warned to stay clear of 0b10 Research branches 1980 | -9/Exiles | Met EX-DEC 2046 | -9/Exiles | Discovered new exit (range 10) 2058 | -9/Exiles | Left Exiles lab with Supersonic Drone Bay 2058 | -9/Exiles | Entered Mines 2063 | -8/Mines | Discovered new exit (range 8) 2074 | -8/Mines | Entered Materials 2074 | -8/Materials | Evolved 2 slots: Utility x1, Weapon x1 2246 | -8/Materials | Discovered new exit (range 11) 2444 | -8/Materials | Identified exit to Garrison 2445 | -8/Materials | Entered Garrison 2471 | -8/Garrison | Triggered checkpoint 2575 | -8/Garrison | Garrison Relay disabled 2651 | -8/Garrison | Rescued a captive Derelict 2699 | -8/Garrison | Discovered new exit (range 79) 2699 | -8/Garrison | Discovered new exit (range 23) 2699 | -8/Garrison | Discovered new exit (range 54) 2699 | -8/Garrison | Discovered new exit (range 57) 2725 | -8/Garrison | Triggered checkpoint 2739 | -8/Garrison | Triggered checkpoint 2774 | -8/Garrison | Destroyed 7 combat bots 2785 | -8/Garrison | Build established: Skirmisher 3040 | -8/Garrison | Installed Relay Interface Framework 3131 | -8/Garrison | Triggered checkpoint 3179 | -8/Garrison | Triggered checkpoint 3213 | -8/Garrison | Entered Materials 3217 | -8/Materials | Destroyed 8 combat bots 3654 | -8/Materials | Discovered new exit (range 29) 3741 | -8/Materials | Discovered new exit (range 63) 3815 | -8/Materials | Discovered new exit (range 10) 4004 | -8/Materials | Discovered new exit (range 16) 4652 | -8/Materials | Identified exit to Garrison 4654 | -8/Materials | Entered Garrison 4691 | -8/Garrison | Expanded RIF knowledge: Signal Jamming 4798 | -8/Garrison | Triggered checkpoint 4880 | -8/Garrison | Discovered new exit (range 8) 4944 | -8/Garrison | Triggered checkpoint 4996 | -8/Garrison | Triggered checkpoint 5066 | -8/Garrison | Discovered new exit (range 10) 5206 | -8/Garrison | Triggered checkpoint 5292 | -8/Garrison | Discovered new exit (range 8) 5424 | -8/Garrison | Discovered new exit (range 58) 5424 | -8/Garrison | Discovered new exit (range 40) 5424 | -8/Garrison | Discovered new exit (range 16) 5424 | -8/Garrison | Discovered new exit (range 26) 5555 | -8/Garrison | Entered Factory 5555 | -7/Factory | Evolved 2 slots: Propulsion x1, Utility x1 5709 | -7/Factory | Discovered new exit (range 15) 5893 | -7/Factory | Discovered new exit (range 16) 6263 | -7/Factory | Lost 3 parts (2n1w) 6271 | -7/Factory | Discovered new exit (range 11) 6399 | -7/Factory | Central database locked down 6672 | -7/Factory | Build established: Assassin 6707 | -7/Factory | Cargo convoy interrupted 7013 | -7/Factory | Identified exit to Garrison 7015 | -7/Factory | Entered Garrison 7143 | -7/Garrison | Triggered checkpoint 7165 | -7/Garrison | Triggered checkpoint 7172 | -7/Garrison | Triggered checkpoint 7223 | -7/Garrison | Destroyed 8 combat bots 7261 | -7/Garrison | Phase Generator disabled 7361 | -7/Garrison | Expanded RIF knowledge: Structural Interface 7481 | -7/Garrison | Discovered new exit (range 10) 7484 | -7/Garrison | Build established: Skirmisher 7533 | -7/Garrison | Triggered checkpoint 7656 | -7/Garrison | Spotted B-75 Beast 7720 | -7/Garrison | Destroyed B-75 Beast 7961 | -7/Garrison | Discovered new exit (range 8) 8015 | -7/Garrison | Spotted B-75 Beast 8079 | -7/Garrison | Lost 4 parts (1n3w) 8114 | -7/Garrison | Destroyed B-75 Beast 8199 | -7/Garrison | Garrison Relay disabled 8251 | -7/Garrison | Entered Factory 8403 | -7/Factory | Discovered new exit (range 67) 8403 | -7/Factory | Discovered new exit (range 78) 8823 | -7/Factory | Found Prototype Launcher 8823 | -7/Factory | Identified Rocket Array 9000 | -7/Factory | Identified exit to Garrison 9001 | -7/Factory | Entered Garrison 9145 | -7/Garrison | Triggered checkpoint 9200 | -7/Garrison | Garrison Relay disabled 9431 | -7/Garrison | Discovered new exit (range 5) 9507 | -7/Garrison | Rescued a captive Derelict 9526 | -7/Garrison | Rescued a captive Derelict 9627 | -7/Garrison | Expanded RIF knowledge: Command Fork 9724 | -7/Garrison | Discovered new exit (range 13) 9973 | -7/Garrison | Lost 3 parts (1n2w) 10021 | -7/Garrison | Discovered new exit (range 10) 10036 | -7/Garrison | Entered Factory 10036 | -6/Factory | Evolved 2 slots: Propulsion x1, Utility x1 10735 | -6/Factory | Identified exit to Garrison 10736 | -6/Factory | Entered Garrison 10888 | -6/Garrison | Triggered checkpoint 10889 | -6/Garrison | Triggered checkpoint 11062 | -6/Garrison | Discovered new exit (range 11) 11100 | -6/Garrison | Triggered checkpoint 11160 | -6/Garrison | Found Adv. Powered Armor 11347 | -6/Garrison | Discovered new exit (range 15) 11357 | -6/Garrison | Found embedded Infiltrators 11602 | -6/Garrison | Garrison Relay disabled 11659 | -6/Garrison | Discovered new exit (range 8) 11728 | -6/Garrison | Expanded RIF knowledge: Hotswap 11773 | -6/Garrison | Entered Factory 11773 | -6/Factory | Accompanied by 1 ally 12107 | -6/Factory | Build established: Assassin 12263 | -6/Factory | Identified exit to Garrison 12264 | -6/Factory | Entered Garrison 12482 | -6/Garrison | Phase Generator disabled 12541 | -6/Garrison | Build established: Skirmisher 12563 | -6/Garrison | Triggered checkpoint 12571 | -6/Garrison | Spotted B-75 Beast 12572 | -6/Garrison | Triggered checkpoint 12603 | -6/Garrison | Destroyed B-75 Beast 12624 | -6/Garrison | Destroyed 11 combat bots 12631 | -6/Garrison | Lost 3 parts (1p2u) 12674 | -6/Garrison | Destroyed 7 combat bots 12708 | -6/Garrison | Discovered new exit (range 10) 12750 | -6/Garrison | Triggered checkpoint 12810 | -6/Garrison | Rewired Striker 12812 | -6/Garrison | Rewired Striker 12958 | -6/Garrison | Discovered new exit (range 10) 13034 | -6/Garrison | Triggered checkpoint 13092 | -6/Garrison | Triggered checkpoint 13142 | -6/Garrison | Triggered checkpoint 13168 | -6/Garrison | Triggered checkpoint 13175 | -6/Garrison | Discovered new exit (range 14) 13204 | -6/Garrison | Garrison Relay disabled 13246 | -6/Garrison | Expanded RIF knowledge: Program Shield 13304 | -6/Garrison | Triggered checkpoint 13385 | -6/Garrison | Entered Factory 13385 | -5/Factory | Accompanied by 2 allies 13385 | -5/Factory | Evolved 2 slots: Power x1, Utility x1 13682 | -5/Factory | Build established: Bothacker-Skirmisher 13719 | -5/Factory | Discovered new exit (range 48) 14054 | -5/Factory | Identified exit to Garrison 14056 | -5/Factory | Entered Garrison 14078 | -5/Garrison | Triggered checkpoint 14226 | -5/Garrison | Triggered checkpoint 14253 | -5/Garrison | Triggered checkpoint 14280 | -5/Garrison | Destroyed 8 combat bots 14327 | -5/Garrison | Phase Generator disabled 14342 | -5/Garrison | Discovered new exit (range 15) 14405 | -5/Garrison | Triggered checkpoint 14532 | -5/Garrison | Triggered checkpoint 14690 | -5/Garrison | Triggered checkpoint 14725 | -5/Garrison | Discovered new exit (range 11) 14965 | -5/Garrison | Discovered new exit (range 15) 15071 | -5/Garrison | Expanded RIF knowledge: Coupler Efficiency 15231 | -5/Garrison | Build established: Scavenger-Gunner 15281 | -5/Garrison | System corruption reached 10% 15363 | -5/Garrison | System corruption reached 30% 15368 | -5/Garrison | Entered Factory 15368 | -4/Factory | Evolved 2 slots: Propulsion x1, Utility x1 15867 | -4/Factory | Build established: Scavenger-Assassin 15907 | -4/Factory | First assault squad dispatched 16056 | -4/Factory | Destroyed 7 combat bots 16058 | -4/Factory | Lost 3 parts (1p1u1w) 16170 | -4/Factory | Lost 5 parts (2p2n1u) 16842 | -4/Factory | Spotted B-86 Titan 16909 | -4/Factory | Assimilated ARC 7a with formatsys_deep 16995 | -4/Factory | Lost 3 parts (1p1u1w) 17157 | -4/Factory | Released all parts (17) 17158 | -4/Factory | Self-destructed Last Messages --------------- 17157_ Released Terrain Scanner. 17157_ Released Railgun. 17157_ Released Hcp. Storage Unit. 17157_ Released Hvy. Gauss Cannon. 17157_ Released Adv. Terrain Scan Processor. 17157_ Released Adv. Targeting Computer. 17157_ Released Imp. Target Analyzer. 17157_ Released Imp. Heavy Treads. 17157_ Released Imp. Ion Engine. 17157_ Released Hvy. Gauss Cannon. 17157_ Released Adv. Targeting Computer. 17157_ Released Imp. Heavy Treads. 17157_ Released Imp. Ion Engine. 17157_ Released Adv. Transmission Jammer. 17157_ Released Seismic Detector. 17157_ Released Com. Wheel. 17157_ Released Com. HERF Cannon. 17157_ Extracted 174 matter. 17158_ The unstable cave ceiling collapses. 17158_ Imp. Heavy Treads crushed. Map ----- +----------------------------------------------------+ | ?????????????????????????????????????????????????? | | ?????????????????????????????????????#???????????? | | ????????????????????????????? ?? ??? ??????? | | ??????????????????????????? ?? ??? ??????? | | ???????????????????????#? ? ?? ?????? | | ???????????????????? ??# ? ? ??????? | | ???????????????????? ### ""?" "?"" ""?????? | | ??????????????????? ""?" """" "??" "?? | | ???????????????#???? """" """" """? ""? | | ???????????????# """ """" """" """" """ | | ??????????????## """ """" """" """" """ | | ??????????????# """ """" """" """" """ | | ??????????????# """" """" """" """ | | ??????????????# /// "" | | ??????????????# // "F"" | | ????????????? + // """" | | ?????????? ???# | | ????????????? # t g | | ???????????#### i ##### ###### | | ??????????? g ## #?#### | | ??????????? g "" ## ###?## """ " | | ??????????? """## ###?## """ " | | ?????????? l] S"## #?#### """ " | | ?????????? #=!]= """## ###?## "" | | ?????????? !![!*!! """## ##?### "" | | ?????????????""" *!![@*] ## ?##### | | ?????????????""" *#/!!!| ## #?#??# | | ?????????????""" ??#######+##### #?#### | | ??????????? ???? ? ?? ?? ## ######w | | ????????????????? # ## ###??# | | ???????????????"????? ? !#? ###### ####### | | ???????????????"? ? # ] ## ???# # "# # # | | ??????????????? ? ?# ! ## #?#### " | | ?????????????"??? ?h# #? ### =#+####### | | ???????????????"????# ! / ## ##### * | | ???????????????"?? h##+############ + | | ?????????????????? ??? ? ?????#??## #####% ! | | ?????????????????? ? ?????????##?# #?# # % | | ??????????????????????? ? ??? ???### | | ??????????????????????? ?###??????? ??## | | ????????????????????????????????#??T??### [ | | ????????????????????????????????????? ??# | | ?????????????????????????????????? ???#?####+##### | | ???????????????????????????????????? ????## ## # | | ??????????????????????????????????????#???# ## # | | ??????????????????????????????????? ?#??#?# ?# # | | ????????????????????????????????????????##?? ###"# | | ?????????????????????????????????????#???##? ## | | ???????????????????????????????????? ?####????# " | | ??????????????????????????????????????? ?? ?# " | +----------------------------------------------------+ Best States ------------- Heat Dissipation 62 Coolant Potential 80 Energy Generation 38 Energy Capacity 490 Matter Stores 300 Matter Capacity 300 Sight Range 22 Terrain Scan Range 16 Terrain Scan Density 210 Jamming Range 16 Armor Coverage 800 Resistance: KI 30 Resistance: TH 30 Evasion (%) 50 Targeting Accuracy 16 Target Analysis 6 Recoil Reduction 5 Offensive Hacking 14 Defensive Hacking 10 Relay Coupler Types 2 Relay Coupler Value 53 Item Schematics ----------------- Arm. Huge Wheel | -7/Factory | Hacked Robot Schematics ------------------ None Fabricated ------------ Nothing Alien Tech Used ----------------- None Achievements -------------- None Challenges ------------ None Game ------ Seed ColdSniperCapacitor Manual? 0 Play Time 03:01:11 Cumulative 1099.4 hours Start 2024.08.16 @ 19:24:46 End 2024.08.17 @ 00:18:29 Sessions 5 Manual Loads 0 Difficulty Rogue Special Mode None Game No. 557 Rogue 430 Adventurer 125 Explorer 2 Win Type - Total 131 Types 101/10/9/3/3/0/0/3/2 Lore% 63 Gallery% 84 Achievement% 84 Wizard Run 0 Options --------- Layout 0 ASCII 0 Keyboard 1 Movement Numpad Keybinds 0 Fullscreen 1 Font 36/Terminus++ Map View 83x50 Zoom Use 0% Tactical HUD 1 Map Filters NONE Filters NONE Steam 1 RUN: 1c509544-7e75-4664-93bf-b93b91d2ca64